bitfinex/quotes_ETHUSD_20250411
["timestamp","ask_amount","ask_price","bid_price","bid_amount"]
[1744331729982,6.57041,1522.0,1521.7,3.0]
[1744331730183,0.55,1521.9,1521.7,3.0]
[1744331730382,0.55,1521.9,1521.7,9.57155]
[1744331730584,0.55,1521.9,1521.8,3.0]
[1744331730887,7.12073,1521.9,1521.8,3.0]
[1744331731496,7.12073,1521.9,1521.6,6.57202]
[1744331731497,0.55,1521.8,1521.6,6.57202]
[1744331731877,7.12117,1521.8,1521.6,3.0]
[1744331732507,0.55,1521.8,1521.6,3.0]
[1744331732714,8.09191,1522.2,1521.6,0.95723]
[1744331733023,0.55,1521.6,1521.4,4.5243]
[1744331733825,0.55,1521.6,1521.4,11.09717]
[1744331734028,0.55,1521.6,1521.4,11.097]
[1744331734410,0.55,1521.6,1521.4,17.6697]
[1744331734607,0.55,1521.6,1521.4,12.91339971]
[1744331735119,0.55,1521.6,1521.4,19.48610971]
[1744331735322,0.55,1521.6,1521.4,12.91339971]
[1744331735505,0.55,1521.8,1521.6,3.0]
[1744331736213,7.12125,1521.8,1521.6,3.0]
[1744331736417,6.57002,1522.1,1521.7,6.57132]
[1744331736611,6.57002,1522.1,1521.8,3.0]
[1744331736911,13.14021,1522.1,1521.8,3.0]
[1744331737112,6.57002,1522.1,1521.8,9.57107]
[1744331737322,14.66158,1522.2,1521.8,11.185259]
[1744331737521,0.1,1522.4,1522.0,3.0]
[1744331737698,0.1,1522.4,1522.2,6.56928]
[1744331737893,0.1,1522.4,1522.3,3.0]
[1744331738100,0.1,1522.4,1522.3,3.48748497]
[1744331738302,0.65,1522.4,1522.3,3.48748497]
[1744331738528,0.1,1522.4,1522.3,3.0]
[1744331738823,0.65,1522.4,1522.3,3.0]
[1744331738988,7.11931,1522.3,1522.0,3.0]
[1744331739190,0.55,1522.1,1521.9,3.0]
[1744331739729,0.55,1522.1,1521.8,7.06583034]
[1744331739896,0.55,1522.1,1521.9,3.29845791]
[1744331740095,0.55,1522.2,1521.9,9.86908791]
[1744331740307,0.1,1522.4,1522.1,9.56969]
[1744331740733,0.1,1522.4,1522.2,0.29876367]
[1744331740903,0.55,1522.3,1522.1,9.56969]
[1744331741103,0.55,1522.3,1522.2,0.29876367]
[1744331741315,0.55,1522.3,1522.1,3.0]
[1744331741532,0.55,1522.3,1522.2,0.29876367]
[1744331741738,0.55,1522.3,1522.1,3.0]
[1744331741907,0.55,1522.3,1522.2,0.29876367]
[1744331742107,0.55,1522.3,1522.1,3.0]
[1744331742305,0.55,1522.3,1522.2,0.29876367]
[1744331742606,0.55,1522.3,1522.1,3.0]
[1744331742806,0.55,1522.3,1522.2,0.29876367]
[1744331743136,0.55,1522.3,1522.1,3.0]
[1744331743336,0.55,1522.3,1522.2,0.29876367]
[1744331743540,0.55,1522.3,1522.1,3.0]
[1744331743705,7.119,1522.3,1522.2,0.29815217]
[1744331744035,7.119,1522.3,1522.1,3.0]
[1744331744238,7.119,1522.3,1522.2,0.29815217]
[1744331744439,0.55,1522.3,1522.2,0.29815217]
[1744331744637,0.55,1522.3,1522.1,3.0]
[1744331744838,0.55,1522.3,1522.2,0.29815217]
[1744331745241,0.55,1522.3,1522.1,9.56973]
[1744331745406,0.1,1522.4,1522.2,0.29815217]
[1744331745812,0.1,1522.4,1522.1,11.183706]
[1744331746131,7.21863,1522.4,1522.1,11.183706]
[1744331746310,7.21863,1522.4,1522.2,0.29815217]
[1744331746513,7.119,1522.3,1522.1,3.0]
[1744331746707,6.56943,1522.2,1522.1,3.0]
[1744331747304,7.119,1522.3,1522.1,3.0]
[1744331747510,6.56943,1522.2,1522.1,3.0]
[1744331748039,7.11921,1522.3,1522.1,3.0]
[1744331748242,6.57051,1522.0,1521.8,0.49497034]
[1744331748552,0.55,1521.8,1521.5,6.57227]
[1744331748704,0.55,1521.8,1521.6,6.57182]
[1744331748908,0.55,1521.8,1521.6,3.0]
[1744331749120,7.12119,1521.8,1521.5,6.57239]
[1744331749321,7.12119,1521.8,1521.6,3.0]
[1744331749528,7.12223,1521.6,1521.4,0.49342169]
[1744331749725,0.55,1521.8,1521.5,6.57245]
[1744331749946,7.12118,1521.8,1521.4,13.14566]
[1744331750147,0.55,1522.0,1521.8,6.57112]
[1744331750377,0.55,1522.0,1521.9,3.0]
[1744331750747,7.1203,1522.0,1521.9,3.0]
[1744331750953,0.55,1522.0,1521.9,3.0]
[1744331751162,14.4665,1522.2,1521.9,9.57073]
[1744331751342,0.55,1522.1,1521.9,3.0]
[1744331751742,0.55,1522.1,1521.9,9.5707]
[1744331751977,7.897,1522.2,1522.0,6.5703]
[1744331752347,1.643,1522.3,1522.1,3.0]
[1744331752546,6.66865,1522.4,1522.0,13.14038]
[1744331752547,0.1,1522.4,1522.3,9.569]
[1744331752980,0.1,1522.4,1522.2,3.0]
[1744331753278,0.1,1522.4,1521.4,1.5457]
[1744331753279,6.57164,1521.7,1521.4,1.5457]
[1744331753451,7.898,1521.8,1521.6,6.57179]
[1744331753648,8.448,1522.0,1521.7,6.57144]
[1744331753848,0.55,1521.8,1521.6,3.0]
[1744331754069,0.55,1521.8,1521.7,6.57159]
[1744331754465,0.55,1521.8,1521.5,6.57238]
[1744331754667,0.55,1521.8,1521.5,10.51510016]
[1744331754991,0.55,1521.8,1521.6,0.22591089]
[1744331755166,7.12125,1521.8,1521.6,0.22591089]
[1744331755598,0.55,1521.8,1521.6,0.22591089]
[1744331755998,7.12124,1521.8,1521.6,0.22591089]
[1744331757003,7.12088,1521.9,1521.6,0.22591089]
[1744331757364,0.55,1521.7,1521.6,0.22591089]
[1744331757570,0.55,1521.8,1521.6,0.22591089]
[1744331757769,0.55,1521.9,1521.6,6.79782089]
[1744331758103,0.55,1521.9,1521.7,6.57149]
[1744331758297,0.55,1521.9,1521.6,6.57191]
[1744331758497,0.55,1521.9,1521.8,0.22591089]
[1744331758697,13.69196,1521.9,1521.6,1.614429]
[1744331759203,7.12094,1521.9,1521.7,0.22591089]
[1744331760805,7.12116,1521.8,1521.7,0.22591089]
[1744331761002,8.65006,1521.8,1521.7,0.22591089]
[1744331761176,0.55,1521.7,1521.1,0.49006408]
[1744331761382,1.5289,1521.4,1521.2,0.1925018]
[1744331761584,0.55,1521.2,1521.0,3.0]
[1744331761901,0.55,1521.2,1521.1,0.1925018]
[1744331763174,0.55,1521.5,1521.2,6.57351]
[1744331763375,0.55,1521.5,1521.3,3.19600135]
[1744331764005,7.12266,1521.5,1521.3,3.19600135]
[1744331764726,7.12266,1521.5,1521.3,0.19600135]
[1744331765124,7.12266,1521.5,1521.1,7.07024992]
[1744331765276,0.55,1521.0,1520.7,6.57574]
[1744331765477,7.12505,1520.9,1520.8,6.20232543]
[1744331766209,7.12505,1520.9,1520.8,9.20232543]
[1744331766408,0.55,1520.9,1520.8,9.20232543]
[1744331766784,0.55,1520.9,1520.8,6.20232543]
[1744331766984,0.55,1520.9,1520.8,10.17187693]
[1744331767387,7.12505,1520.9,1520.8,9.20232543]
[1744331767607,0.55,1520.9,1520.8,6.20232543]
[1744331768508,7.12505,1520.9,1520.8,6.20232543]
[1744331768712,7.12505,1520.9,1520.7,4.89916924]
[1744331768713,0.55,1520.9,1520.7,4.89916924]
[1744331769022,0.55,1520.9,1520.7,6.04671916]
[1744331769206,7.12521,1520.9,1520.7,4.89916924]
[1744331770023,7.12521,1520.9,1520.8,0.1821304]
[1744331770619,0.55,1520.9,1520.8,0.1821304]
[1744331770786,8.72005,1520.9,1520.8,0.1821304]
[1744331771115,7.12548,1520.8,1520.7,4.89916924]
[1744331771618,7.12548,1520.8,1520.7,5.06612214]
[1744331772620,0.55,1520.7,1520.4,6.20232543]
[1744331772785,0.55,1520.7,1520.1,8.25e-06]
[1744331772786,8.72308,1520.2,1520.1,8.25e-06]
[1744331772982,16.46308,1520.2,1520.1,8.25e-06]
[1744331773230,16.46308,1520.2,1519.7,17.06222962]
[1744331773397,8.72481,1519.8,1519.7,6.35694122]
[1744331773732,16.46481,1519.8,1519.7,6.35694122]
[1744331774092,0.55,1519.8,1519.7,6.35694122]
[1744331774317,0.55,1519.8,1519.7,9.35694122]
[1744331774618,0.55,1519.8,1519.7,15.93718122]
[1744331774815,0.55,1519.8,1519.7,18.40171344]
[1744331775020,0.55,1519.8,1519.7,11.82147344]
[1744331775237,0.55,1519.8,1519.7,9.35694122]
[1744331775717,7.12981,1519.8,1519.7,6.35694122]
[1744331775921,14.87181,1519.8,1519.7,6.35694122]
[1744331776214,16.46681,1519.8,1519.7,6.35694122]
[1744331777329,0.55,1519.7,1519.4,6.58146]
[1744331777526,0.55,1519.7,1519.5,6.58098]
[1744331777696,7.742,1519.8,1519.6,6.58066]
[1744331777895,9.339,1520.0,1519.5,1.628]
[1744331778133,0.55,1519.6,1519.4,3.0]
[1744331778897,0.55,1519.4,1519.2,3.0]
[1744331779112,0.55,1519.4,1519.2,9.58224]
[1744331779345,0.55,1519.5,1519.2,9.58224]
[1744331779841,0.55,1519.5,1519.3,6.5817]
[1744331780002,0.55,1519.5,1519.4,6.58154]
[1744331780327,0.55,1519.5,1519.4,6.75051067]
[1744331780537,6.57977,1519.9,1519.4,6.75051067]
[1744331780742,14.32256,1520.1,1519.7,6.58]
[1744331780922,7.744,1520.1,1519.8,6.57958]
[1744331781102,0.55,1520.0,1519.8,13.3279983]
[1744331781302,6.5777,1520.3,1519.9,6.579]
[1744331781699,6.57952,1519.9,1519.5,1.628]
[1744331781926,7.13002,1519.8,1519.5,1.628]
[1744331782099,6.58041,1519.7,1519.4,3.0]
[1744331782430,6.58041,1519.7,1519.4,9.58149]
[1744331782635,0.55,1519.8,1519.4,9.5814]
[1744331783232,7.12996,1519.8,1519.4,9.5814]
[1744331783436,7.12996,1519.8,1519.4,18.037746]
[1744331784222,0.55,1519.5,1519.3,0.95817]
[1744331784408,0.55,1519.5,1519.4,6.58154]
[1744331784613,0.55,1519.7,1519.5,3.0]
[1744331785037,0.55,1519.7,1519.6,0.15219945]
[1744331785537,7.13024,1519.7,1519.6,0.15219945]
[1744331787539,8.501259,1519.7,1519.6,0.15219945]
[1744331787763,10.167059,1519.7,1519.0,6.58309]
[1744331788039,0.55,1519.3,1519.1,0.14058139]
[1744331788536,13.71446,1519.3,1519.1,0.14058139]
[1744331788734,7.13241,1519.2,1519.1,0.14058139]
[1744331789039,0.55,1519.1,1518.9,3.0]
[1744331789247,7.13301,1519.1,1518.7,8.18816]
[1744331789538,7.746,1519.2,1518.6,6.5849]
[1744331789539,0.55,1518.9,1518.6,6.5849]
[1744331789834,6.58431,1518.8,1518.5,1.6038]
[1744331790040,6.58431,1518.8,1518.2,6.58649]
[1744331790041,0.55,1518.5,1518.2,6.58649]
[1744331790734,0.55,1518.7,1518.5,6.58527]
[1744331790898,0.55,1518.8,1518.5,6.58527]
[1744331791345,0.55,1518.8,1518.6,6.58474]
[1744331791548,0.55,1518.8,1518.7,6.58457]
[1744331791737,0.55,1518.8,1518.6,6.58474]
[1744331792044,0.55,1518.8,1518.5,11.18923]
[1744331792243,0.55,1518.8,1518.5,17.77446]
[1744331792443,0.55,1518.8,1518.4,3.0]
[1744331792644,0.55,1518.8,1518.6,6.58474]
[1744331792947,0.55,1518.8,1518.6,3.0]
[1744331793617,0.55,1518.8,1518.6,9.585]
[1744331793947,0.55,1518.8,1518.6,16.16981]
[1744331794147,0.55,1518.8,1518.6,9.58481]
[1744331794348,0.55,1518.8,1518.6,3.0]
[1744331795346,8.11769,1519.1,1518.7,6.58442]
[1744331795551,14.25144,1519.0,1518.6,6.58478]
[1744331796149,0.55,1518.9,1518.6,6.58478]
[1744331797253,0.55,1518.9,1518.7,6.58434]
[1744331798347,0.55,1518.9,1518.8,6.58414]
[1744331798855,14.27675,1519.3,1518.9,6.58351]
[1744331799054,1.5347,1519.3,1519.0,6.58304]
[1744331799352,7.67,1519.3,1519.1,6.58267]
[1744331799533,7.67,1519.3,1519.1,13.16534]
[1744331799732,0.55,1519.2,1519.1,16.16534]
[1744331799952,0.55,1519.2,1519.1,17.97623803]
[1744331800153,9.2047,1519.5,1519.1,4.81089803]
[1744331800353,0.55,1519.4,1519.1,3.14449202]
[1744331800541,7.13241,1519.2,1519.1,0.14449202]
[1744331800748,7.13289,1519.1,1518.8,9.584]
[1744331800944,7.13289,1519.1,1518.9,0.12648137]
[1744331801118,7.13289,1519.1,1518.8,9.584]
[1744331801321,7.13289,1519.1,1518.9,0.12541653]
[1744331801554,7.13327,1519.0,1518.6,16.16965]
[1744331801767,8.873479,1519.1,1518.7,0.12549259]
[1744331801768,0.55,1518.9,1518.7,0.12549259]
[1744331801929,0.55,1518.9,1518.5,14.22043]
[1744331801930,7.13393,1518.9,1518.5,8.16043]
[1744331802129,0.55,1518.7,1518.6,0.12754641]
[1744331802337,0.55,1518.7,1518.3,2.06213089]
[1744331802630,0.55,1518.9,1518.4,0.12754641]
[1744331802852,0.55,1518.9,1518.7,6.58434]
[1744331803252,0.55,1518.9,1518.8,0.12906823]
[1744331803457,7.13371,1518.9,1518.8,0.12906823]
[1744331803655,0.55,1518.9,1518.3,1.575]
[1744331803856,0.55,1518.5,1518.2,13.17346]
[1744331804065,0.55,1518.5,1518.3,3.0]
[1744331805276,0.55,1518.2,1518.1,0.1]
[1744331805575,0.55,1518.2,1517.8,6.39599439]
[1744331805576,0.55,1517.6,1517.3,1.575]
[1744331805723,0.55,1517.5,1517.2,6.59084]
[1744331805929,7.14001,1517.5,1517.1,8.5545238]
[1744331806156,7.14001,1517.5,1517.1,16.66052118]
[1744331806381,0.55,1517.6,1517.2,6.59108]
[1744331806607,0.55,1517.6,1517.3,6.59046]
[1744331806805,0.55,1517.7,1517.4,6.58993]
[1744331807310,0.55,1517.7,1517.3,6.59059]
[1744331807468,14.70831,1517.7,1517.3,7.07614186]
[1744331807669,14.70831,1517.7,1517.2,6.59106]
[1744331807670,0.55,1517.4,1517.2,3.0]
[1744331808106,0.55,1517.4,1517.2,9.59107]
[1744331808271,0.55,1517.5,1517.2,9.59083]
[1744331808467,0.55,1517.5,1517.2,11.40538838]
[1744331808670,0.55,1517.7,1517.4,6.58996]
[1744331810327,7.13908,1517.7,1517.2,16.67104076]
[1744331810601,0.55,1517.5,1517.2,0.48912076]
[1744331810806,6.58897,1517.7,1517.1,1.9632538]
[1744331811016,0.55,1517.6,1517.2,6.59085]
[1744331811169,7.1396,1517.6,1517.2,13.18169]
[1744331811571,8.16618,1517.8,1517.2,3.49178788]
[1744331811771,0.55,1517.7,1517.3,6.59065]
[1744331811972,0.55,1517.7,1517.3,6.59043]
[1744331811973,7.13912,1517.7,1517.3,6.59043]
[1744331812173,13.72831,1517.7,1517.3,6.59043]
[1744331812372,0.55,1517.5,1517.3,3.0]
[1744331812681,0.55,1517.5,1517.3,9.5906]
[1744331813278,0.55,1517.5,1517.1,0.3882538]
[1744331813484,0.55,1517.2,1517.1,0.3882538]
[1744331814212,0.55,1517.3,1517.1,0.3882538]
[1744331814513,0.55,1517.3,1517.2,9.59108]
[1744331814714,0.55,1517.5,1517.3,6.59048]
[1744331815079,0.55,1517.6,1517.4,0.15016247]
[1744331815276,0.55,1517.6,1517.4,6.74018247]
[1744331815475,15.84123,1517.7,1517.3,6.59058]
[1744331815679,15.84123,1517.7,1517.5,0.15016247]
[1744331815880,6.58952,1517.6,1517.2,11.66220248]
[1744331816115,0.55,1517.5,1517.3,6.5905]
[1744331816305,0.55,1517.5,1517.4,6.59022]
[1744331816611,0.55,1517.5,1517.2,5.07128248]
[1744331816612,7.13972,1517.6,1517.2,17.75688]
[1744331816912,8.79518,1517.2,1517.1,0.3882538]
[1744331817086,16.47118,1517.2,1517.1,0.3882538]
[1744331817289,16.47118,1517.2,1516.5,0.55]
[1744331817290,7.14369,1516.6,1516.5,0.55]
[1744331818716,0.55,1516.6,1516.5,0.55]
[1744331819818,7.14369,1516.6,1516.5,0.55]
[1744331820517,17.099103,1516.6,1516.1,0.1]
[1744331820735,8.79953,1516.2,1516.1,0.1]
[1744331820892,19.54253,1516.2,1516.1,0.1]
[1744331821204,8.80171,1515.7,1515.2,8.21602]
[1744331821408,8.293,1515.7,1515.6,0.53657454]
[1744331821591,0.55,1515.7,1515.6,7.13461454]
[1744331821795,0.55,1515.7,1515.6,8.50791999]
[1744331822418,0.55,1515.7,1515.6,10.12421999]
[1744331822584,7.743,1516.2,1515.6,2.15287454]
[1744331822785,0.55,1516.1,1515.9,6.59672]
[1744331823217,0.55,1516.1,1516.0,6.74462074]
[1744331823403,12.75451,1516.5,1516.0,6.74462074]
[1744331823404,74.631143,1516.6,1516.2,6.59519]
[1744331823718,6.59534,1516.3,1515.9,3.0]
[1744331823921,0.55,1516.1,1515.9,3.0]
[1744331824216,0.55,1516.1,1515.8,6.597]
[1744331824217,2.2041,1516.1,1515.8,6.597]
[1744331824602,0.55,1515.9,1515.6,2.0045538]
[1744331824937,0.55,1515.9,1515.6,0.3882538]
[1744331824938,7.14761,1515.7,1515.6,0.3882538]
[1744331825094,0.55,1515.3,1515.0,0.207]
[1744331825286,8.80346,1515.3,1515.0,3.207]
[1744331825483,2.2041,1515.3,1515.1,6.60019]
[1744331825689,0.55,1515.3,1515.2,6.59978]
[1744331826326,0.55,1515.5,1515.4,6.59871]
[1744331826894,1.6541,1515.8,1515.6,6.59804]
[1744331827232,1.6541,1515.8,1515.7,6.59761]
[1744331827437,8.463638,1515.9,1515.7,6.59761]
[1744331827891,7.749,1515.9,1515.7,6.59737]
[1744331828091,7.749,1515.9,1515.6,6.59799]
[1744331828435,0.55,1515.8,1515.7,6.59761]
[1744331828793,0.55,1515.8,1515.4,8.21485]
[1744331828992,2.039611,1515.8,1515.6,6.59775]
[1744331829230,0.55,1515.8,1515.7,6.59761]
[1744331829797,0.55,1515.8,1515.7,6.76781996]
[1744331830007,0.55,1515.8,1515.7,0.17020996]
[1744331830193,15.39878,1515.8,1515.3,13.19816]
[1744331830394,2.2041,1515.8,1515.6,6.59782]
[1744331830595,7.749,1515.9,1515.7,13.19497]
[1744331830808,7.749,1515.9,1515.8,0.16937038]
[1744331831292,8.299,1515.9,1515.8,6.76654038]
[1744331831640,15.478,1516.2,1516.0,6.59613]
[1744331831844,9.318,1516.2,1516.1,0.1707443]
[1744331831999,7.14589,1516.1,1515.7,6.59724]
[1744331832347,7.14589,1516.1,1515.8,0.1707443]
[1744331832871,0.55,1516.1,1515.8,6.7679143]
[1744331833026,0.55,1516.1,1515.9,6.59658]
[1744331833350,9.318,1516.2,1516.0,0.16883617]
[1744331833558,0.55,1516.1,1516.0,0.16883617]
[1744331834040,7.728,1516.5,1516.0,0.16883617]
[1744331834245,8.16253,1516.5,1516.0,13.19224]
[1744331834409,8.16253,1516.5,1516.1,6.7634279]
[1744331834615,0.55,1516.4,1516.1,6.7634279]
[1744331834933,6.59459,1516.4,1516.1,0.1677679]
[1744331835335,13.1894,1516.4,1516.1,0.1677679]
[1744331835533,0.55,1516.3,1516.1,0.1677679]
[1744331835737,16.46343,1516.2,1516.1,0.1677679]
[1744331835937,21.05543,1516.2,1516.1,0.1677679]
[1744331836237,21.05543,1516.2,1515.6,6.59775]
[1744331836238,0.55,1515.9,1515.6,6.59775]
[1744331836534,0.55,1515.7,1515.4,6.59873]
[1744331836748,0.55,1515.7,1514.7,6.60164]
[1744331836749,6.59922,1515.4,1514.7,6.60164]
[1744331836948,0.55,1515.0,1514.7,6.60164]
[1744331837141,0.55,1515.0,1514.8,6.60138]
[1744331837329,7.75,1515.3,1515.1,6.60022]
[1744331837521,0.55,1515.2,1515.1,6.60022]
[1744331837935,0.55,1515.5,1515.3,6.59913]
[1744331838248,0.55,1515.5,1515.4,6.59891]
[1744331838451,1.568,1515.7,1515.4,6.59891]
[1744331838452,0.55,1515.6,1515.4,6.59891]
[1744331839031,0.55,1515.7,1515.4,13.19752]
[1744331839366,17.447848,1515.9,1515.2,3.0]
[1744331839656,0.55,1515.8,1515.5,13.1964]
[1744331840153,0.55,1515.8,1515.5,6.59818]
[1744331840322,9.32,1515.9,1515.5,3.0]
[1744331840518,7.752,1515.9,1515.6,6.59773]
[1744331840722,7.752,1515.9,1515.5,11.16315]
[1744331840723,14.34906,1515.9,1515.5,11.16315]
[1744331840924,0.55,1515.8,1515.5,11.16294]
[1744331841132,72.46363,1516.2,1515.8,6.59712]
[1744331841322,65.868,1516.2,1515.7,6.5976]
[1744331841523,7.14708,1515.9,1515.5,6.59842]
[1744331841748,7.14708,1515.9,1515.5,13.19666]
[1744331841956,0.55,1515.9,1515.6,6.59781]
[1744331842553,0.55,1515.9,1515.6,13.19563]
[1744331842745,79.05919,1516.2,1515.8,6.59709]
[1744331842941,6.59723,1515.8,1515.3,15.91563]
[1744331843147,7.14691,1515.9,1515.5,9.59829]
[1744331843448,13.74391,1515.9,1515.5,9.59829]
[1744331843759,0.55,1515.7,1515.5,9.59829]
[1744331844260,0.55,1515.9,1515.7,6.59759]
[1744331845048,65.868,1516.2,1515.7,3.0]
[1744331845223,65.868,1516.2,1515.9,6.59649]
[1744331845423,65.868,1516.2,1515.8,6.5971]
[1744331845424,0.55,1516.0,1515.7,6.59759]
[1744331845658,7.14653,1516.0,1515.7,3.0]
[1744331845863,0.55,1516.0,1515.7,9.59739]
[1744331846278,0.55,1516.0,1515.8,6.59712]
[1744331846435,0.55,1516.0,1515.7,16.19484]
[1744331846760,0.55,1516.1,1515.8,6.59688]
[1744331846965,6.16,1516.4,1515.7,4.619484]
[1744331846966,7.7476,1516.4,1515.7,6.163984]
[1744331847125,8.18218,1516.4,1516.1,6.59586]
[1744331847325,14.34581,1516.6,1516.0,9.5963]
[1744331847555,7.752,1516.6,1516.3,6.59457]
[1744331847763,7.752,1516.6,1516.4,6.59434]
[1744331847948,0.55,1516.6,1516.4,6.59434]
[1744331848479,58.1476,1516.9,1516.6,6.59349]
[1744331848641,7.752,1517.0,1516.7,13.18611]
[1744331848842,14.344,1517.0,1516.6,9.59356]
[1744331849067,20.93633,1517.0,1516.6,9.59356]
[1744331849241,16.596393,1517.0,1516.6,9.59345]
[1744331849443,10.004393,1517.0,1516.6,9.59345]
[1744331849637,16.596433,1517.0,1516.6,9.59345]
[1744331849962,0.55,1516.6,1516.1,8.14032]
[1744331850260,0.55,1516.4,1516.1,6.59582]
[1744331850469,0.55,1516.4,1516.1,13.19147]
[1744331850842,0.55,1516.4,1516.2,6.59538]
[1744331851051,0.55,1516.2,1515.9,1.5445]
[1744331851250,0.55,1516.2,1515.9,8.14108]
[1744331851770,0.55,1516.2,1516.0,6.59612]
[1744331851974,9.5336,1516.6,1516.3,6.59491]
[1744331852289,0.55,1516.4,1516.1,6.59585]
[1744331852468,0.55,1516.4,1516.1,13.19153]
[1744331852668,0.55,1516.4,1516.1,6.59568]
[1744331852985,0.55,1516.2,1516.1,6.59587]
[1744331853280,9.5336,1516.6,1516.2,6.59543]
[1744331853570,9.5336,1516.6,1516.3,6.59479]
[1744331853736,0.55,1516.3,1516.0,6.59622]
[1744331853939,7.859504,1516.3,1516.0,6.59622]
[1744331854147,6.59604,1516.1,1515.7,8.14172]
[1744331854339,0.55,1516.0,1515.8,6.59699]
[1744331854566,0.55,1516.1,1515.8,6.59699]
[1744331854786,13.74211,1516.1,1515.7,9.59761]
[1744331854982,2.877571,1516.1,1515.5,8.14283]
[1744331855139,16.12905,1516.2,1515.8,6.59717]
[1744331855140,0.55,1515.9,1515.8,6.59717]
[1744331855968,0.55,1516.1,1515.8,13.19434]
[1744331856280,0.55,1516.1,1515.9,6.59673]
[1744331856689,0.55,1516.1,1516.0,6.5963]
[1744331857259,0.55,1516.3,1515.7,6.59739]
[1744331857466,0.55,1516.0,1515.7,13.1948]
[1744331857793,7.14631,1516.0,1515.7,6.59739]
[1744331857968,0.55,1516.0,1515.7,6.59739]
[1744331858342,0.55,1516.0,1515.7,13.19479]
[1744331858542,6.59471,1516.4,1515.7,1.773929]
[1744331858758,6.59471,1516.4,1516.0,6.59593]
[1744331858980,0.55,1516.3,1516.1,6.59585]
[1744331859139,6.59471,1516.4,1516.1,6.59585]
[1744331859546,6.59471,1516.4,1515.7,10.946]
[1744331859547,0.55,1516.1,1515.8,6.59701]
[1744331859872,0.55,1516.1,1515.9,3.0]
[1744331860392,0.55,1516.2,1515.9,16.19328]
[1744331861974,0.55,1516.2,1516.0,6.59621]
[1744331862177,7.946,1516.5,1516.1,6.59587]
[1744331862478,64.75054,1516.7,1516.3,13.18944]
[1744331862479,8.20454,1516.7,1516.3,13.18944]
[1744331862643,0.55,1516.6,1516.4,6.59448]
[1744331862840,0.55,1516.6,1516.3,13.18957]
[1744331863050,0.55,1516.6,1516.3,6.59472]
[1744331863256,2.084801,1516.6,1516.0,1.5736]
[1744331863454,0.55,1516.2,1516.0,1.5736]
[1744331864144,0.55,1516.3,1516.0,11.16984]
[1744331864481,0.55,1516.3,1516.1,6.59574]
[1744331864945,0.55,1516.3,1516.0,11.16984]
[1744331865284,7.145,1516.3,1516.0,11.16984]
[1744331865785,0.55,1516.0,1515.9,3.0]
[1744331866276,0.55,1516.1,1516.0,6.5963]
[1744331866455,0.55,1516.1,1515.9,13.19311]
[1744331866655,6.59458,1516.4,1515.9,6.59652]
[1744331866856,6.5954,1516.3,1516.0,3.0]
[1744331867067,0.55,1516.2,1516.0,9.59628]
[1744331867473,7.14456,1516.4,1515.8,2.06968798]
[1744331867678,0.55,1516.0,1515.9,3.0]
[1744331868369,7.1459,1516.1,1515.9,3.0]
[1744331868683,0.55,1516.2,1515.8,1.5736]
[1744331868993,0.55,1516.2,1516.0,6.59622]
[1744331869192,0.55,1516.2,1515.8,1.5736]
[1744331869504,0.55,1516.3,1516.0,6.59588]
[1744331869699,7.14516,1516.3,1515.9,6.5967]
[1744331869996,6.59547,1516.2,1515.9,6.5967]
[1744331870154,0.55,1516.1,1515.9,3.0]
[1744331870550,0.55,1516.1,1515.9,9.59653]
[1744331871087,0.55,1516.2,1515.9,9.59653]
[1744331871399,0.55,1516.1,1515.8,2.07943349]
[1744331871696,0.55,1515.6,1515.4,0.49128536]
[1744331871897,6.59875,1515.5,1515.1,8.17368]
[1744331872105,7.14904,1515.4,1515.1,1.5736]
[1744331872264,0.55,1515.4,1514.8,1.5736]
[1744331872581,6.59889,1515.5,1514.8,1.5736]
[1744331872582,0.55,1515.5,1515.3,6.59905]
[1744331873083,0.55,1515.8,1515.5,6.59823]
[1744331873592,0.55,1515.8,1515.6,6.59788]
[1744331874990,7.14719,1515.8,1515.5,3.0]
[1744331875159,0.55,1515.8,1515.5,6.59824]
[1744331875686,7.1474,1515.8,1515.4,9.59884]
[1744331875884,7.1474,1515.8,1515.4,9.59873]
[1744331876057,7.14736,1515.8,1515.5,3.0]
[1744331876256,0.55,1515.8,1515.4,1.767539]
[1744331876455,0.55,1515.8,1515.6,6.59801]
[1744331876655,0.55,1515.8,1515.5,6.59847]
[1744331876887,7.1472,1515.8,1515.5,6.59847]
[1744331877196,0.55,1515.8,1515.5,6.59847]
[1744331877569,0.55,1515.8,1515.5,6.59828]
[1744331877769,7.14717,1515.8,1515.5,6.59828]
[1744331877957,0.55,1515.8,1515.5,6.59828]
[1744331878592,0.55,1515.8,1515.6,13.19573]
[1744331878899,14.81844,1516.1,1515.6,1.5816]
[1744331879189,6.59634,1516.0,1515.7,6.59745]
[1744331879483,6.59634,1516.0,1515.6,8.17959]